[Event "55th Ladies GM 2024"]
[Site "Belgrade9"]
[Date "2024.03.07"]
[Round "6.3"]
[White "Kulkarni Bhakti"]
[Black "Xu, Yuanyuan"]
[Result "0-1"]
[ECO "E47"]
[WhiteElo "2372"]
[BlackElo "2288"]
[Annotator "TA"]
[PlyCount "86"]
[EventDate "2024.03.02"]
[EventType "tourn"]
[EventCountry "SRB"]
[SourceTitle "playchess.com"]
[Source "ChessBase"]
[SourceQuality "1"]
[TimeControl "40/5400+30:1800+30"]

{[%evp 9,86,10,13,-13,0,0,15,5,29,33,27,29,30,25,41,31,29,22,21,27,23,28,41,25,32,3,37,-1,44,26,17,0,36,-147,80,57,56,52,40,41,21,-27,-16,-10,-15,0,-2,-18,-20,-17,-14,-28,0,0,0,-34,-39,-33,-45,-42,-45,-47,-37,-56,-70,-81,-29,-125,-59,-66,-62,-61,-77,-366,-312,-545,-541,-777,-760]} 1. d4 {[%emt 0:00:20]} Nf6 {[%emt 0:00:39]} 2. c4 {[%emt 0:00:12]} e6 {[%emt 0:02:22]} 3. Nc3 {[%emt 0:00:21]} Bb4 {[%emt 0:03:01]} 4. e3 {[%emt 0:00:27]} O-O {[%emt 0:00:32]} 5. Bd3 {[%emt 0:03:31]} c5 {[%emt 0:00:10]} 6. Bd2 {[%emt 0:04:10]} cxd4 {[%emt 0:03:45]} 7. exd4 {[%emt 0:00:03]} Re8 {[%emt 0:00:42]} 8. Nf3 {[%emt 0:01:14] The position is equal.} b6 {[%emt 0:00:18]} 9. a3 {[%emt 0:01:14]} Bf8 {[%emt 0:02:17]} 10. O-O {[%emt 0:03:23]} Bb7 {[%emt 0:00:17]} 11. Re1 {[%emt 0:01:32]} d6 {[%emt 0:00:34]} 12. h3 {[%emt 0:05:37]} Nbd7 {[%emt 0:01:16]} 13. Bf4 {[%emt 0:02:34]} a6 {[%emt 0:02:12]} 14. Rc1 {[%emt 0:02:28]} Rc8 {[%emt 0:00:25]} 15. b4 {[%emt 0:02:53]} h6 {[%emt 0:20:14]} 16. Bh2 {[%emt 0:03:49]} g6 {[%emt 0:14:18]} 17. Re3 {[%emt 0:08:43]} h5 {[%emt 0:04:19]} 18. Qc2 {[%emt 0:10:55]} b5 {[%emt 0:14:15]} 19. c5 {[%emt 0:18:46]} (19. cxb5 Nd5 20. Qd2 Nxe3 21. Qxe3 Qb6 $17) 19... dxc5 {[%emt 0:00:03]} 20. bxc5 {[%emt 0:00:40]} (20. dxc5 $5 Bh6 21. Rce1 Bxe3 22. Rxe3 $11) 20... Bh6 {[%emt 0:02:46] [#] Prevents Ng5.} 21. Bd6 $2 {[%emt 0:02:45]} Nf8 $2 {[%emt 0:07:35] [#]} (21... Bxe3 $17 {stays on course.} 22. fxe3 Bxf3 23. gxf3 e5) 22. Rf1 {[%emt 0:06:25]} Nd5 {[%emt 0:02:03]} (22... Bxe3 23. fxe3) 23. Nxd5 {[%emt 0:01:28]} Bxd5 {[%emt 0:00:04] [#]} 24. Qe2 $1 {[%emt 0:03:57][%cal Of3e5]} Rc6 {[%emt 0:03:36] [#]} 25. Ne5 {[%emt 0:02:22]} Rxd6 $11 {[%emt 0:03:49]} 26. cxd6 {[%emt 0:00:04]} Qxd6 {[%emt 0:00:15]} 27. f4 {[%emt 0:00:21]} Bb7 {[%emt 0:02:58]} (27... Qxa3 $2 28. Bxg6 $18) 28. Be4 {[%emt 0:05:37]} Bxe4 {[%emt 0:00:51]} 29. Rxe4 {[%emt 0:00:02]} Qxa3 {[%emt 0:00:15]} 30. Qc2 {[%emt 0:02:57] Repels Rc8} Qd6 {[%emt 0:00:13]} 31. Qc5 {[%emt 0:00:20]} Rd8 {[%emt 0:00:27]} 32. Qa7 {[%emt 0:00:22]} Nd7 {[%emt 0:03:07]} 33. Kh1 {[%emt 0:01:14]} Qb6 {[%emt 0:01:35]} 34. Qxb6 {[%emt 0:00:42]} Nxb6 {[%emt 0:00:01]} 35. Ra1 $1 {[%emt 0:00:28]} Ra8 $36 {[%emt 0:01:02][%mdl 2048] Black is pushing.} 36. Nxg6 {[%emt 0:04:09]} Nd5 {[%emt 0:03:05][%cal Oa6a5]} 37. Ne5 {[%emt 0:00:30]} Bxf4 {[%emt 0:00:30]} (37... a5 $17 38. Nc6 a4 (38... Bxf4 39. Rxa5 Rxa5 40. Nxa5 $14)) 38. Nc6 {[%emt 0:02:55] [#]} (38. Re2 $1 $11) 38... Bc7 {[%emt 0:00:58]} (38... Bd2 $1 $17 {...a5 would now be deadly.} 39. Rh4 Nf6) 39. Re2 $1 $15 {[%emt 0:00:00]} a5 {[%emt 0:01:32] White must now prevent ...Ra6.} 40. Rb2 {[%emt 0:00:00]} Ra6 $1 {[%emt 0:01:06]} ({Of course not} 40... b4 $6 41. Nxb4 Ne7 (41... Nxb4 42. Rxb4 Kg7 43. Rb7 $16) 42. Nd3 $14) 41. Rc1 {[%emt 0:06:32][%mdl 8192]} (41. Nb4 $17 Rd6 (41... axb4 42. Rxa6 Kg7 43. Rc6 $18) (41... Nxb4 42. Rxb4 h4 43. Rxb5 $11) 42. Nxd5 Rxd5 43. Rc2) 41... b4 {[%emt 0:02:19] Strongly threatening ...Bf4.} 42. Rc5 $2 {[%emt 0:00:00]} (42. Ne5 {keeps fighting.}) 42... Bd6 $19 {[%emt 0:02:55]} 43. Nb8 {[%emt 0:02:31]} Ra8 {[%emt 0:03:50] Weighted Error Value: White=0.43/Black=0.20 (precise) .  Loses game:     	White=1     	---        Mistake:       	White=4     	Black=3      Inaccurate:     	White=4     	Black=4      OK:         	White=11    	Black=14     Best:        	White=2     	Black=3      Strong:       	White=2     	Black=1} 0-1

[Event "55th Ladies GM 2024"]
[Site "Belgrade9"]
[Date "2024.03.07"]
[Round "6.5"]
[White "Vujovic, Vera"]
[Black "Mehmed, Elif"]
[Result "0-1"]
[ECO "B56"]
[WhiteElo "2175"]
[BlackElo "2194"]
[Annotator "RC"]
[PlyCount "86"]
[EventDate "2024.03.02"]
[EventType "tourn"]
[EventCountry "SRB"]
[SourceTitle "playchess.com"]
[Source "ChessBase"]
[SourceQuality "1"]
[TimeControl "40/5400+30:1800+30"]

1. e4 {[%emt 0:00:04]} c5 {[%emt 0:00:04]} 2. Nf3 {[%emt 0:00:06]} d6 {[%emt 0:00:07]} 3. d4 {[%emt 0:00:03]} cxd4 {[%emt 0:00:04]} 4. Nxd4 {[%emt 0:00:04]} Nf6 {[%emt 0:00:07]} 5. Nc3 {[%emt 0:00:04]} e5 {[%emt 0:00:04]} 6. Ndb5 {[%emt 0:12:21]} a6 {[%emt 0:00:19]} 7. Na3 {[%emt 0:00:08]} b5 {[%emt 0:00:05]} 8. Nd5 {[%emt 0:01:34]} Nxe4 {[%emt 0:00:26]} 9. Be3 {[%emt 0:04:33]} Nd7 {[%emt 0:17:24]} 10. Bxb5 {[%emt 0:38:34]} Rb8 {[%emt 0:28:04]} 11. Bc6 {[%emt 0:06:59]} Bb7 {[%emt 0:12:49]} 12. Bb6 {[%emt 0:17:54]} Qh4 {[%emt 0:00:12]} 13. Nc7+ {[%emt 0:05:09]} Kd8 {[%emt 0:00:18]} 14. g3 {[%emt 0:00:56]} Qh3 {[%emt 0:00:57]} 15. Nxa6+ {[%emt 0:01:09]} Nxb6 {[%emt 0:00:25]} 16. Nxb8 {[%emt 0:00:20]} Qg2 {[%emt 0:03:54]} 17. Rf1 {[%emt 0:00:55]} Kc7 {[%emt 0:00:34]} 18. Bxb7 {[%emt 0:00:28]} Kxb7 {[%emt 0:04:18]} 19. Qe2 {[%emt 0:03:50]} Nc5 {[%emt 0:02:35]} 20. b4 {[%emt 0:01:48]} Nca4 {[%emt 0:00:20]} 21. Na6 {[%emt 0:00:31]} Qc6 {[%emt 0:02:04]} 22. c4 {[%emt 0:01:23]} Qc8 {[%emt 0:04:35]} 23. b5 {[%emt 0:01:49]} d5 {[%emt 0:00:31]} 24. Qf3 {[%emt 0:00:51]} f5 {[%emt 0:01:57]} 25. Rc1 {[%emt 0:00:32]} e4 {[%emt 0:03:39]} 26. Qb3 {[%emt 0:00:12]} Nc5 {[%emt 0:00:07]} 27. Nxc5+ {[%emt 0:00:37]} Qxc5 {[%emt 0:00:04]} 28. Nb1 {[%emt 0:00:48]} Be7 {[%emt 0:01:43]} 29. Nd2 {[%emt 0:00:35]} Ra8 {[%emt 0:00:44]} 30. Rc2 {[%emt 0:00:29]} d4 {[%emt 0:00:22]} 31. Qb2 {[%emt 0:00:25]} d3 {[%emt 0:00:56]} 32. Nb3 {[%emt 0:00:44]} Qb4+ {[%emt 0:00:12]} 33. Rd2 {[%emt 0:00:18]} Nxc4 {[%emt 0:00:09]} 34. Qd4 {[%emt 0:00:25]} Rxa2 {[%emt 0:09:32]} 35. Qd7+ {[%emt 0:00:44]} Kb8 {[%emt 0:00:07]} 36. Qe8+ {[%emt 0:00:08]} Kc7 {[%emt 0:00:06]} 37. Qc6+ {[%emt 0:00:20]} Kd8 {[%emt 0:00:09]} 38. Qd5+ {[%emt 0:00:13]} Nd6 {[%emt 0:00:39]} 39. b6 {[%emt 0:01:10]} Bg5 {[%emt 0:01:01]} 40. Qg8+ {[%emt 0:00:28]} Ke7 {[%emt 0:02:08]} 41. f4 {[%emt 0:07:41]} e3 {[%emt 0:05:57]} 42. Rf3 {[%emt 0:04:33]} Qxd2+ {[%emt 0:01:55]} 43. Nxd2 {[%emt 0:00:08]} Ra1+ {[%emt 0:00:03]} 0-1

[Event "55th Ladies GM 2024"]
[Site "Belgrade9"]
[Date "2024.03.08"]
[Round "7.1"]
[White "Mehmed, Elif"]
[Black "Pogorelskikh, Sofia"]
[Result "1/2-1/2"]
[ECO "B33"]
[WhiteElo "2194"]
[BlackElo "2214"]
[Annotator "RC"]
[PlyCount "120"]
[EventDate "2024.03.02"]
[EventType "tourn"]
[EventCountry "SRB"]
[SourceTitle "playchess.com"]
[Source "ChessBase"]
[SourceQuality "1"]
[TimeControl "40/5400+30:1800+30"]

1. e4 {[%emt 0:00:04]} c5 {[%emt 0:00:10]} 2. Nf3 {[%emt 0:00:06]} Nc6 {[%emt 0:00:08]} 3. d4 {[%emt 0:00:07]} cxd4 {[%emt 0:00:11]} 4. Nxd4 {[%emt 0:00:09]} Nf6 {[%emt 0:00:15]} 5. Nc3 {[%emt 0:00:07]} e5 {[%emt 0:00:12]} 6. Ndb5 {[%emt 0:00:05]} d6 {[%emt 0:00:19]} 7. Nd5 {[%emt 0:00:06]} Nxd5 {[%emt 0:00:13]} 8. exd5 {[%emt 0:00:05]} Ne7 {[%emt 0:00:15]} 9. c4 {[%emt 0:00:14]} Ng6 {[%emt 0:01:01]} 10. Qa4 {[%emt 0:00:19]} Bd7 {[%emt 0:00:27]} 11. Qb4 {[%emt 0:00:10]} Qb8 {[%emt 0:00:33]} 12. h4 {[%emt 0:00:19]} h5 {[%emt 0:01:09]} 13. Be3 {[%emt 0:00:17]} a6 {[%emt 0:02:15]} 14. Nc3 {[%emt 0:00:23]} Be7 {[%emt 0:01:58]} 15. Na4 {[%emt 0:01:47]} Qc7 {[%emt 0:02:48]} 16. g3 {[%emt 0:01:20]} O-O {[%emt 0:06:54]} 17. Nb6 {[%emt 0:00:27]} Rad8 {[%emt 0:02:44]} 18. Nxd7 {[%emt 0:07:00]} Qxd7 {[%emt 0:02:37]} 19. Be2 {[%emt 0:08:43]} Qf5 {[%emt 0:08:46]} 20. f3 {[%emt 0:10:34]} Qd7 {[%emt 0:09:19]} 21. O-O-O {[%emt 0:07:31]} f5 {[%emt 0:16:55]} 22. f4 {[%emt 0:10:08]} exf4 {[%emt 0:05:31]} 23. gxf4 {[%emt 0:01:07]} Bf6 {[%emt 0:02:11]} 24. Bxh5 {[%emt 0:03:06]} Nh8 {[%emt 0:07:15]} 25. Bd4 {[%emt 0:06:29]} Rc8 {[%emt 0:03:19]} 26. Bxf6 {[%emt 0:03:52]} Rxf6 {[%emt 0:01:06]} 27. Rdg1 {[%emt 0:11:48]} b5 {[%emt 0:05:41]} 28. Be2 {[%emt 0:10:18]} bxc4 {[%emt 0:00:38]} 29. Rg3 {[%emt 0:01:24]} Rg6 {[%emt 0:20:10]} 30. Rc3 {[%emt 0:04:33]} Qb5 {[%emt 0:00:00]} 31. a3 {[%emt 0:02:11]} Rg2 {[%emt 0:00:00]} 32. Bxc4 {[%emt 0:01:54]} Qxb4 {[%emt 0:00:00]} 33. axb4 {[%emt 0:00:07]} Rb8 {[%emt 0:00:00]} 34. Bd3 {[%emt 0:01:30]} Rxb4 {[%emt 0:00:00]} 35. Rc8+ {[%emt 0:05:06]} Kh7 {[%emt 0:00:00]} 36. Bxf5+ {[%emt 0:00:24]} g6 {[%emt 0:00:00]} 37. Bd3 {[%emt 0:01:40]} Rxf4 {[%emt 0:00:00]} 38. Bxa6 {[%emt 0:03:03]} Nf7 {[%emt 0:01:40]} 39. Bf1 {[%emt 0:00:55]} Rgf2 {[%emt 0:00:47]} 40. Bd3 {[%emt 0:00:29]} Ne5 {[%emt 0:01:30]} 41. Bc2 {[%emt 0:03:49]} Kg7 {[%emt 0:04:54]} 42. b3 {[%emt 0:02:54]} Rd4 {[%emt 0:06:09]} 43. h5 {[%emt 0:00:35]} gxh5 {[%emt 0:01:33]} 44. Rxh5 {[%emt 0:00:20]} Nd3+ {[%emt 0:04:42]} 45. Kb1 {[%emt 0:04:44]} Rf1+ {[%emt 0:04:20]} 46. Ka2 {[%emt 0:00:09]} Rxd5 {[%emt 0:05:31]} 47. Rxd5 {[%emt 0:03:23]} Nb4+ {[%emt 0:00:05]} 48. Ka3 {[%emt 0:00:56]} Nxd5 {[%emt 0:00:08]} 49. Rd8 {[%emt 0:00:52]} Ra1+ {[%emt 0:01:15]} 50. Kb2 {[%emt 0:00:06]} Ra6 {[%emt 0:00:24]} 51. Be4 {[%emt 0:01:07]} Nf6 {[%emt 0:02:16]} 52. Bf3 {[%emt 0:00:21]} Kf7 {[%emt 0:01:49]} 53. b4 {[%emt 0:00:50]} Ke7 {[%emt 0:00:11]} 54. Rc8 {[%emt 0:00:31]} d5 {[%emt 0:01:06]} 55. Kb3 {[%emt 0:01:20]} Kd7 {[%emt 0:00:28]} 56. Rc1 {[%emt 0:01:49]} Rc6 {[%emt 0:01:12]} 57. Rd1 {[%emt 0:01:33]} Kc7 {[%emt 0:00:31]} 58. Bxd5 {[%emt 0:07:26]} Nxd5 {[%emt 0:00:17]} 59. Rxd5 {[%emt 0:00:04]} Kb6 {[%emt 0:00:24]} 60. Ka4 {[%emt 0:00:25]} Rh6 {[%emt 0:00:35]} 1/2-1/2

[Event "55th Ladies GM 2024"]
[Site "Belgrade9"]
[Date "2024.03.08"]
[Round "7.2"]
[White "Lu, Miaoyi"]
[Black "Vujovic, Vera"]
[Result "1-0"]
[ECO "A34"]
[WhiteElo "2392"]
[BlackElo "2175"]
[Annotator "RC"]
[PlyCount "51"]
[EventDate "2024.03.02"]
[EventType "tourn"]
[EventCountry "SRB"]
[SourceTitle "playchess.com"]
[Source "ChessBase"]
[SourceQuality "1"]
[TimeControl "40/5400+30:1800+30"]

1. Nf3 {[%emt 0:00:01]} d5 {[%emt 0:00:11]} 2. e3 {[%emt 0:00:02]} Nf6 {[%emt 0:00:10]} 3. c4 {[%emt 0:00:04]} c5 {[%emt 0:00:10]} 4. cxd5 {[%emt 0:00:21]} Nxd5 {[%emt 0:00:06]} 5. Nc3 {[%emt 0:00:02]} Nc6 {[%emt 0:01:01]} 6. Bb5 {[%emt 0:07:39]} a6 {[%emt 0:21:39]} 7. Bxc6+ {[%emt 0:03:18]} bxc6 {[%emt 0:00:07]} 8. Qa4 {[%emt 0:10:38]} Bb7 {[%emt 0:10:41]} 9. Ne5 {[%emt 0:06:30]} Rc8 {[%emt 0:17:06]} 10. e4 {[%emt 0:08:20]} Nb4 {[%emt 0:12:08]} 11. d4 {[%emt 0:12:53]} e6 {[%emt 0:10:52]} 12. dxc5 {[%emt 0:03:27]} Bxc5 {[%emt 0:00:25]} 13. O-O {[%emt 0:00:47]} a5 {[%emt 0:02:48]} 14. a3 {[%emt 0:02:32]} Na6 {[%emt 0:00:32]} 15. Nc4 {[%emt 0:01:00]} Nb8 {[%emt 0:12:55]} 16. Bf4 {[%emt 0:03:57]} Nd7 {[%emt 0:02:37]} 17. Rad1 {[%emt 0:08:31]} Ba6 {[%emt 0:02:01]} 18. Ne5 {[%emt 0:00:44]} Bxf1 {[%emt 0:02:29]} 19. Nxd7 {[%emt 0:00:09]} Bxf2+ {[%emt 0:01:03]} 20. Kxf2 {[%emt 0:01:35]} Ba6 {[%emt 0:00:11]} 21. Qd4 {[%emt 0:01:21]} f6 {[%emt 0:00:59]} 22. Qa7 {[%emt 0:01:24]} e5 {[%emt 0:00:44]} 23. Qxa6 {[%emt 0:00:28]} Qc7 {[%emt 0:00:26]} 24. Qc4 {[%emt 0:01:18]} Ke7 {[%emt 0:00:30]} 25. Be3 {[%emt 0:00:03]} Rcd8 {[%emt 0:00:34]} 26. Bc5+ {[%emt 0:00:04]} 1-0

[Event "55th Ladies GM 2024"]
[Site "Belgrade9"]
[Date "2024.03.08"]
[Round "7.3"]
[White "Xu, Yuanyuan"]
[Black "Maltsevskaya, Aleksandra"]
[Result "1/2-1/2"]
[ECO "E62"]
[WhiteElo "2288"]
[BlackElo "2374"]
[Annotator "TA"]
[PlyCount "92"]
[EventDate "2024.03.02"]
[EventType "tourn"]
[EventCountry "SRB"]
[SourceTitle "playchess.com"]
[Source "ChessBase"]
[SourceQuality "1"]
[TimeControl "40/5400+30:1800+30"]

{[%evp 21,92,12,22,0,0,0,0,0,39,50,49,39,25,24,33,31,28,62,53,46,60,41,89,58,62,58,191,175,175,186,179,185,191,-40,-60,-58,-55,-66,-68,-58,-62,-68,-28,-54,-48,-52,-53,-62,0,0,3,7,6,8,8,8,8,8,8,0,0,0,0,0,8,0,0,0,0,0,0,0,0]} 1. d4 {[%emt 0:00:03]} Nf6 {[%emt 0:00:07]} 2. c4 {[%emt 0:00:02]} g6 {[%emt 0:00:08]} 3. g3 {[%emt 0:00:31]} Bg7 {[%emt 0:00:07]} 4. Bg2 {[%emt 0:00:03]} O-O {[%emt 0:00:21]} 5. Nf3 {[%emt 0:00:22]} d6 {[%emt 0:00:07]} 6. O-O {[%emt 0:00:09]} c6 {[%emt 0:00:06]} 7. Nc3 {[%emt 0:00:26]} Bf5 {[%emt 0:00:08]} 8. Nh4 {[%emt 0:02:26]} Be6 {[%emt 0:02:37]} 9. d5 {[%emt 0:07:32]} cxd5 {[%emt 0:00:06]} 10. cxd5 {[%emt 0:00:09]} Bd7 {[%emt 0:00:07]} 11. Be3 {[%emt 0:02:54]} Na6 {[%emt 0:01:16]} 12. h3 {[%emt 0:04:58]} b5 {[%emt 0:06:29]} 13. a3 {[%emt 0:03:13]} Qc8 {[%emt 0:01:08]} 14. Kh2 {[%emt 0:00:39]} Qc4 {[%emt 0:08:07]} 15. Nf3 {[%emt 0:15:49]} Rfc8 {[%emt 0:04:05]} 16. Nd4 {[%emt 0:05:50]} b4 {[%emt 0:01:04]} 17. axb4 {[%emt 0:00:46]} Nxb4 {[%emt 0:00:08]} 18. Qd2 {[%emt 0:00:08]} a5 $1 {[%emt 0:18:25]} (18... Nbxd5 $2 19. Nxd5 Nxd5 20. Rfc1 $18) 19. Rfc1 {[%emt 0:07:36][%cal Oc3a2,Bf1c1,Bc1a1,Ba1a5][%mdl 32] [#] Und jetzt Na2! wäre schön.} Qa6 {[%emt 0:05:36]} 20. Ra3 {[%emt 0:11:32]} Qb7 {[%emt 0:05:23][%cal Od7e8]} 21. Rca1 {[%emt 0:02:09]} Qc7 {[%emt 0:08:40]} (21... a4 $14) 22. Ndb5 {[%emt 0:09:14]} Bxb5 {[%emt 0:32:47]} 23. Nxb5 {[%emt 0:00:02]} Qb7 {[%emt 0:01:41]} (23... Qd8 $14) 24. Rxa5 $18 {[%emt 0:01:50]} Rxa5 {[%emt 0:00:06]} 25. Rxa5 {[%emt 0:00:07]} Nc2 {[%emt 0:00:05]} 26. Na7 {[%emt 0:12:25]} Nxe3 {[%emt 0:03:22]} 27. Nxc8 $2 {[%emt 0:00:34]} ({Der einzige Zug:} 27. Qxe3 $18 Re8 28. b3) 27... Nc4 $15 {[%emt 0:00:05] Ein dynamisches Springerpaar.} 28. Nxe7+ $1 {[%emt 0:02:57]} Kf8 $1 {[%emt 0:01:08]} 29. Qf4 {[%emt 0:04:32]} Nxa5 {[%emt 0:00:06]} 30. Nc6 {[%emt 0:00:15]} Nxc6 {[%emt 0:00:33]} 31. dxc6 {[%emt 0:02:00]} Qc7 {[%emt 0:00:04]} (31... Qxb2 $2 {zu gefräßig.} 32. c7 (32. Qxd6+ Kg8 $18) 32... Qc3 33. Qxd6+ Kg8 34. Qd8+ Bf8 35. c8=Q $18 (35. c8=B Kg7 $11) (35. c8=R Qxc8 36. Qxc8 h5 $18)) 32. b4 {[%emt 0:05:17]} Ne8 {[%emt 0:00:11]} 33. Bd5 {[%emt 0:00:00]} Be5 {[%emt 0:01:17]} 34. Qc4 {[%emt 0:00:00]} Qb6 {[%emt 0:00:59]} ({Besser ist} 34... Bf6 $15 35. e3 Kg7) 35. e3 $1 $11 {[%emt 0:00:00] Die Stellung ist ausgeglichen.} Nc7 {[%emt 0:00:45]} 36. Bxf7 {[%emt 0:00:00]} Qb5 $132 {[%emt 0:00:22][%mdl 2048] Schwarz wehrt sich} 37. Qxb5 {[%emt 0:01:08]} Nxb5 {[%emt 0:00:05]} 38. Bc4 {[%emt 0:00:08][%cal Of2f4] [#] Und f4! würde nun gewinnen.} Nc7 {[%emt 0:00:04]} 39. b5 {[%emt 0:00:09] f4 ist eine echte Drohung.} d5 {[%emt 0:00:05]} 40. Be2 {[%emt 0:01:12]} Na8 {[%emt 0:00:29]} 41. h4 {[%emt 0:05:05]} Nb6 {[%emt 0:01:10]} 42. Kh3 {[%emt 0:05:25]} Ke7 {[%emt 0:05:22]} 43. h5 {[%emt 0:01:05]} gxh5 {[%emt 0:07:29]} 44. Kh4 {[%emt 0:00:49]} Bc3 {[%emt 0:09:13]} 45. Bd3 {[%emt 0:05:20]} Be1 {[%emt 0:00:57]} 46. f4 {[%emt 0:03:25]} h6 {[%emt 0:03:53] Gewichteter Fehlerwert: Weiß=0.14 (sehr präzise) /Schwarz=0.11 (sehr präzise) .  Gewinn verpasst:   	Weiß=1     	---        Fehler:       	---       	Schwarz=3     Ungenau:       	Weiß=1     	Schwarz=2     OK:         	Weiß=17    	Schwarz=14    Bester:       	Weiß=1     	Schwarz=5     Stark:        	Weiß=2     	Schwarz=2} 1/2-1/2

[Event "55th Ladies GM 2024"]
[Site "Belgrade9"]
[Date "2024.03.08"]
[Round "7.4"]
[White "Kubicka, Anna"]
[Black "Kulkarni Bhakti"]
[Result "1-0"]
[ECO "C28"]
[WhiteElo "2278"]
[BlackElo "2372"]
[Annotator "TA"]
[PlyCount "95"]
[EventDate "2024.03.02"]
[EventType "tourn"]
[EventCountry "SRB"]
[SourceTitle "playchess.com"]
[Source "ChessBase"]
[SourceQuality "1"]
[TimeControl "40/5400+30:1800+30"]

{[%evp 15,95,0,-2,0,0,-5,0,0,0,0,0,0,0,0,11,14,15,20,35,31,34,19,33,17,17,22,20,18,19,23,197,169,193,197,276,288,345,273,438,224,253,215,199,122,124,133,137,130,197,180,210,205,210,210,198,183,222,229,240,218,235,238,297,290,398,397,420,430,454,451,554,569,558,544,534,572,571,542,677,670,29983,29983]} 1. e4 {[%emt 0:00:11]} e5 {[%emt 0:00:25]} 2. Bc4 {[%emt 0:00:23]} Nf6 {[%emt 0:00:31]} 3. d3 {[%emt 0:00:09]} Nc6 {[%emt 0:01:05]} 4. Nc3 {[%emt 0:00:28]} Bb4 {[%emt 0:03:12]} 5. Nge2 {[%emt 0:00:48]} d5 {[%emt 0:02:59]} 6. exd5 {[%emt 0:00:19]} Nxd5 {[%emt 0:00:14]} 7. O-O {[%emt 0:01:31]} Be6 {[%emt 0:05:04]} 8. Bxd5 {[%emt 0:01:34]} Bxd5 {[%emt 0:00:04]} 9. f4 {[%emt 0:00:18]} O-O {[%emt 0:02:46]} 10. f5 {[%emt 0:00:37][%cal Of5f6]} f6 {[%emt 0:02:06]} 11. Nxd5 {[%emt 0:00:07] The position is equal.} Qxd5 {[%emt 0:00:06]} 12. Kh1 {[%emt 0:00:32]} Rad8 {[%emt 0:05:38]} 13. Ng3 {[%emt 0:02:49]} Rf7 {[%emt 0:09:58]} 14. Ne4 {[%emt 0:02:44]} Bf8 {[%emt 0:01:10]} 15. Be3 {[%emt 0:03:16]} Nd4 {[%emt 0:06:51]} 16. Bxd4 {[%emt 0:13:03]} Qxd4 {[%emt 0:00:46]} 17. b3 {[%emt 0:00:09]} Ba3 {[%emt 0:07:25]} 18. Rb1 {[%emt 0:01:21]} b5 {[%emt 0:03:53]} 19. Qh5 {[%emt 0:07:15]} Qd5 {[%emt 0:11:00]} 20. Rf3 {[%emt 0:12:19]} Qc6 {[%emt 0:01:27]} 21. Rf2 {[%emt 0:09:15]} a5 {[%emt 0:00:43]} 22. g4 {[%emt 0:02:20]} Re7 $2 {[%emt 0:11:56]} (22... h6 $11 {and Black is okay.}) 23. g5 $18 {[%emt 0:07:55] [#] aiming for gxf6.} fxg5 {[%emt 0:01:22]} 24. Qxg5 {[%emt 0:01:00]} Rf8 {[%emt 0:07:08]} (24... Rd4 $142 25. f6 Rf7 26. Qxe5 Rd5) 25. f6 {[%emt 0:12:24]} Ref7 {[%emt 0:00:10]} 26. Rbf1 {[%emt 0:02:06]} ({Worse is} 26. Qxe5 Rxf6 (26... gxf6 27. Qf5 $14) 27. Rg1 Rg6 (27... Rxf2 28. Qxg7#) 28. Rxg6 hxg6 29. Rxf8+ Bxf8 $11) 26... Re8 $2 {[%emt 0:04:34]} (26... Rd8 {keeps fighting.} 27. Rg2 (27. Qxe5 g6 $16) 27... Bc5) 27. Qh5 {[%emt 0:05:52]} (27. Rg2 $142) 27... g6 {[%emt 0:02:51]} 28. Rg2 {[%emt 0:02:34][%cal Og2g6] White threatens Rxg6+! and mate.} Re6 {[%emt 0:00:25]} 29. Rfg1 {[%emt 0:06:17]} (29. Qh4 $18) 29... Rfxf6 {[%emt 0:01:58]} 30. Nxf6+ {[%emt 0:00:26]} Rxf6 {[%emt 0:00:02]} 31. Qxe5 {[%emt 0:00:45]} Bb4 {[%emt 0:00:50]} (31... Re6 $16 {was worth a try.} 32. Qa1 Bb4) 32. Qe4 {[%emt 0:00:43]} Qxe4 {[%emt 0:02:23]} 33. dxe4 {[%emt 0:00:02][%mdl 4096] Endgame. KRR-KRB} Kf7 {[%emt 0:00:18]} 34. Re2 {[%emt 0:01:09]} Ke6 {[%emt 0:00:12]} 35. Rc1 {[%emt 0:01:52]} Bc3 {[%emt 0:00:15]} 36. Rd1 {[%emt 0:00:09]} c6 {[%emt 0:00:17][%cal Bc7c6,Bc6c5,Bc5c4][%mdl 32]} 37. Kg2 {[%emt 0:00:20]} Rf8 {[%emt 0:00:12]} 38. Rd3 {[%emt 0:00:47]} b4 {[%emt 0:00:22]} 39. a4 {[%emt 0:01:16]} c5 {[%emt 0:00:34]} 40. Rh3 {[%emt 0:01:01]} Rf7 {[%emt 0:00:24]} 41. Rf3 {[%emt 0:31:16]} Rc7 {[%emt 0:33:46] [#]} 42. e5 $1 {[%emt 0:00:00][%cal Be4e5,Be5e6][%mdl 32]} c4 {[%emt 0:00:00]} (42... Rf7 43. Rf6+) 43. Rf6+ {[%emt 0:00:00]} Ke7 {[%emt 0:00:00]} 44. Ra6 {[%emt 0:00:00]} cxb3 {[%emt 0:00:00]} 45. cxb3 {[%emt 0:00:00]} Rc5 {[%emt 0:00:00]} 46. e6 {[%emt 0:00:00]} Be5 {[%emt 0:00:00]} 47. Rd2 {[%emt 0:00:00] Prevents Rd5. Threatening mate with Rd7+.} Kf6 {[%emt 0:00:00]} 48. Rf2+ {[%emt 0:00:00] Weighted Error Value: White=0.19 (very precise) /Black=0.51.  Loses game:     	---       	Black=1      Mistake:       	White=2     	Black=3      Inaccurate:     	---       	Black=2      OK:         	White=19    	Black=9      Best:        	White=3     	---} 1-0